fUST/lending_fUST_20240428
["ID","MTS","AMOUNT","RATE_DAILY","PERIOD"]
[323752312,1714237850878,-151.0,0.00019788,2]
[323752313,1714237850887,-151.0,0.00019788,2]
[323752314,1714237850896,-151.0,0.00019788,2]
[323752315,1714237850907,-151.0,0.00019788,2]
[323752316,1714237850916,-151.0,0.00019788,2]
[323752317,1714237850925,-151.0,0.00019788,2]
[323752318,1714237850935,-990.402938,0.00019788,2]
[323752319,1714237850945,-990.402938,0.00019788,2]
[323752320,1714237850954,-990.402938,0.00019788,2]
[323752321,1714237850963,-990.402938,0.00019788,2]
[323752322,1714237850972,-990.402938,0.00019788,2]
[323752323,1714237850982,-990.402938,0.00019788,2]
[323752324,1714237850991,-990.402938,0.00019788,2]
[323752325,1714237851001,-990.402946,0.00019788,2]
[323752326,1714237851010,-151.0,0.00019788,2]
[323752327,1714237851019,-198.225672,0.00019788,2]
[323752328,1714237851028,-151.0,0.00019788,2]
[323752329,1714237851037,-151.0,0.00019788,2]
[323752330,1714237851047,-151.0,0.00019788,2]
[323752331,1714237851056,-151.0,0.00019788,2]
[323752332,1714237851065,-151.0,0.00019788,2]
[323752333,1714237851074,-151.0,0.00019788,2]
[323752334,1714237851083,-261.249387,0.00019788,2]
[323752335,1714237851092,-555.341219,0.00019788,2]
[323752336,1714237851101,-555.341213,0.00019788,2]
[323752337,1714237851110,-1613.127063,0.00019788,2]
[323752338,1714237851120,-1613.127063,0.00019788,2]
[323752339,1714237851129,-1613.127063,0.00019788,2]
[323752340,1714237851138,-1613.127061,0.00019788,2]
[323752341,1714237851148,-151.0,0.00019788,2]
[323752342,1714237851158,-151.0,0.00019788,2]
[323752343,1714237851167,-831.77615,0.00019788,2]
[323752344,1714237851177,-831.77615,0.00019788,2]
[323752345,1714237851187,-831.77615,0.00019788,2]
[323752346,1714237851196,-831.776151,0.00019788,2]
[323752347,1714237851206,-233.293216,0.00019788,2]
[323752348,1714237851215,-154.82968734,0.00019795,2]
[323752349,1714237851225,-154.82968734,0.00019795,2]
[323752350,1714237851234,-154.82968734,0.00019795,2]
[323752351,1714237851244,-274.70129001,0.00019795,2]
[323752352,1714237851255,-176.45122466,0.00019795,2]
[323752353,1714237851264,-1311.74164115,0.00019795,2]
[323752354,1714237851273,-1090.52068603,0.00019795,2]
[323752355,1714237851283,-156.89720801,0.00019795,2]
[323752356,1714237851293,-170.86790632,0.00019795,2]
[323752357,1714237851303,-151.0,0.00019795,2]
[323752358,1714237851312,-151.0,0.00019795,2]
[323752359,1714237851321,-151.0,0.00019795,2]
[323752360,1714237851331,-151.0,0.00019795,2]
[323752361,1714237851341,-151.0,0.00019795,2]
[323752362,1714237851350,-182.553311,0.00019795,2]
[323752363,1714237851359,-151.0,0.00019795,2]
[323752364,1714237851368,-151.0,0.00019795,2]
[323752365,1714237851378,-151.0,0.00019795,2]
[323752366,1714237851387,-151.0,0.00019795,2]
[323752367,1714237851396,-276.539279,0.00019795,2]
[323752368,1714237851406,-276.539279,0.00019795,2]
[323752369,1714237851415,-276.539279,0.00019795,2]
[323752370,1714237851424,-151.0,0.00019795,2]
[323752371,1714237851433,-276.539279,0.00019795,2]
[323752372,1714237851442,-151.0,0.00019795,2]
[323752373,1714237851451,-276.539279,0.00019795,2]
[323752374,1714237851461,-151.0,0.00019795,2]
[323752375,1714237851470,-276.539285,0.00019795,2]
[323752376,1714237851480,-151.0,0.00019795,2]
[323752377,1714237851489,-151.0,0.00019795,2]
[323752378,1714237851500,-1496.728183,0.00019795,2]
[323752379,1714237851509,-1496.728183,0.00019795,2]
[323752380,1714237851519,-1496.728183,0.00019795,2]
[323752381,1714237851528,-161.615976,0.00019795,2]
[323752382,1714237851538,-161.615976,0.00019795,2]
[323752383,1714237851548,-161.615976,0.00019795,2]
[323752384,1714237851557,-1496.728183,0.00019795,2]
[323752385,1714237851566,-1496.728183,0.00019795,2]
[323752386,1714237851576,-1496.728179,0.00019795,2]
[323752387,1714237851585,-161.615976,0.00019795,2]
[323752388,1714237851594,-161.615976,0.00019795,2]
[323752389,1714237851604,-161.615968,0.00019795,2]
[323752390,1714237851613,-441.053999,0.00019795,2]
[323752391,1714237851622,-441.053994,0.00019795,2]
[323752392,1714237851631,-408.98014644,0.00019796,2]
[323752393,1714237851639,-151.0,0.00019796,2]
[323752394,1714237851649,-151.0,0.00019796,2]
[323752395,1714237851658,-14171.08479833,0.00019797,2]
[323752396,1714237851667,-673.47182912,0.00019797,2]
[323752397,1714237851676,-154.86062544,0.00019797,2]
[323752398,1714237851686,-215.0,0.00019797,2]
[323752399,1714237851695,-12595.22607343,0.00019888,2]
[323752400,1714237851705,-468.63626257,0.00019897,2]
[323752401,1714237851714,-526.42938947,0.00019998,2]
[323752402,1714237851724,-3133.32659327,0.00019998,7]
[323752403,1714237851733,-164.04462217,0.00019998,2]
[323752404,1714237851743,-579.63919765,0.00019998,2]
[323752405,1714237851754,-160.58737193,0.00019998,2]
[323752406,1714237851763,-1735.38019087,0.00019998,2]
[323752407,1714237851773,-1491.10873787,0.00019998,2]
[323752408,1714237851783,-154.84515485,0.00019998,2]
[323752409,1714237851792,-157.85138427,0.00019998,2]
[323752410,1714237851802,-2303.82500109,0.00019999,2]
[323752411,1714237851811,-313.81237693,0.00019999,2]
[323752412,1714237851820,-21849.05684084,0.0002,2]
[323752413,1714237851830,-329.804469,0.0002,2]
[323752414,1714237851840,-255.34690737,0.0002,2]
[323752415,1714237851850,-7904.0,0.0002,2]
[323752416,1714237851862,-10576.43477504,0.0002,2]
[323752417,1714237851872,-154.84515485,0.0002,2]
[323752418,1714237851881,-400.0,0.0002,2]
[323752419,1714237851891,-154.84515485,0.0002,2]
[323752420,1714237851901,-1007.54147167,0.0002,4]
[323752421,1714237851911,-629.13342962,0.0002,10]
[323752422,1714237851920,-154.82968734,0.0002,2]
[323752423,1714237851929,-319.79932742,0.0002,2]
[323752424,1714237851940,-52429.39234415,0.0002,2]
[323752425,1714237851950,-10103.98914239,0.0002,2]
[323752426,1714237851959,-177.75,0.0002,2]
[323752427,1714237851969,-381.0,0.0002,2]
[323752428,1714237851978,-2000.0,0.0002,2]
[323752429,1714237851987,-1815.0,0.0002,2]
[323752430,1714237851997,-2000.0,0.0002,2]
[323752431,1714237852006,-1815.0,0.0002,2]
[323752432,1714237852016,-434.0,0.0002,2]
[323752433,1714237852024,-80000.0,0.0002,2]
[323752434,1714237852033,-241.61171692,0.0002,2]
[323752435,1714237852044,-151.31843755,0.0002,2]
[323752436,1714237852053,-200.0,0.0002,2]
[323752437,1714237852063,-1152.0,0.00020251,2]
[323752438,1714237852072,-1004.0,0.0002026,3]
[323752439,1714237852081,-3000.0,0.00020547,2]
[323752440,1714237852091,-3000.0,0.00020547,2]
[323752441,1714237852101,-3000.0,0.00020547,2]
[323752442,1714237852110,-3000.0,0.00020547,2]
[323752443,1714237852119,-3000.0,0.00020547,2]
[323752444,1714237852128,-3000.0,0.00020547,2]
[323752445,1714237852138,-3000.0,0.00020547,2]
[323752446,1714237852147,-3000.0,0.00020547,2]
[323752447,1714237852156,-3000.0,0.00020547,2]
[323752448,1714237852256,-3000.0,0.00020547,2]
[323752449,1714237852265,-3000.0,0.00020547,2]
[323752450,1714237852274,-3000.0,0.00020547,2]
[323752451,1714237852284,-3000.0,0.00020547,2]
[323752452,1714237852294,-3000.0,0.00020547,2]
[323752453,1714237852303,-3000.0,0.00020547,2]
[323752454,1714237852313,-3000.0,0.00020547,2]
[323752455,1714237852322,-3000.0,0.00020547,2]
[323752456,1714237852331,-3000.0,0.00020547,2]
[323752457,1714237852341,-3000.0,0.00020547,2]
[323752458,1714237852350,-3000.0,0.00020547,2]
[323752459,1714237852359,-3000.0,0.00020547,2]
[323752460,1714237852368,-3000.0,0.00020547,2]
[323752461,1714237852377,-3000.0,0.00020547,2]
[323752462,1714237852386,-2098.31882873,0.00020547,2]
[323752463,1714237852396,-203.6371581,0.0002074,2]
[323752464,1714237852406,-203.6371581,0.0002074,2]
[323752465,1714237852415,-10000.0,0.00021,5]
[323752466,1714237852425,-203.6371581,0.00021068,2]
[323752467,1714237852434,-203.6873974,0.00021068,2]
[323752468,1714237852444,-407.0693511,0.00021068,2]
[323752469,1714237852452,-317.3739957,0.00021068,2]
[323752470,1714237852462,-203.6371581,0.00021068,2]
[323752471,1714237852471,-203.6371581,0.00021068,2]
[323752472,1714237852480,-1004.0,0.0002114,3]
[323752473,1714237852489,-587.0,0.000212,2]
[323752474,1714237852500,-153.0,0.00021479,2]
[323752475,1714237852509,-10000.0,0.00021918,2]
[323752476,1714237852518,-151.0,0.00021918,2]
[323752477,1714237852527,-151.0,0.00021918,2]
[323752478,1714237852537,-223.984602,0.00021918,2]
[323752479,1714237852546,-159.13598878,0.00022,2]
[323752480,1714237852556,-500.0,0.00022,7]
[323752481,1714237852565,-528.67,0.00022,7]
[323752482,1714237852574,-1004.0,0.0002202,3]
[323752483,1714237852584,-203.6873974,0.00022219,2]
[323752484,1714237852593,-203.6873974,0.00022219,2]
[323752485,1714237852603,-1613.0,0.00022277,2]
[323752486,1714237852612,-1000.0,0.000225,2]
[323752487,1714237852621,-1563.48070757,0.000225,2]
[323752488,1714237852630,-10590.66904835,0.000225,2]
[323752489,1714237852639,-154.81422293,0.000225,2]
[323752490,1714237852648,-154.81422293,0.000225,2]
[323752491,1714237852658,-547.60120881,0.000225,2]
[323752492,1714237852667,-150.190599,0.000225,2]
[323752493,1714237852676,-1000.0,0.000225,2]
[323752494,1714237852685,-150.0,0.00022675,2]
[323752495,1714237852695,-417.0,0.00022675,2]
[323752496,1714237852704,-150.0,0.00022675,2]
[323752497,1714237852713,-1004.0,0.0002289,3]
[323752498,1714237852722,-1000.0,0.00022895,2]
[323752499,1714237852731,-153.0,0.00022904,2]
[323752500,1714237852741,-10000.0,0.00022916,2]
[323752501,1714237852751,-713.83575721,0.00023,2]
[323752502,1714237852761,-428.0,0.00023,2]
[323752503,1714237852770,-428.0,0.00023288,2]
[323752504,1714237852779,-736.537297,0.00023395,2]
[323752505,1714237852788,-4091.967549,0.00023395,2]
[323752506,1714237852798,-2946.149186,0.00023395,2]
[323752507,1714237852807,-167.323085,0.00023395,2]
[323752508,1714237852817,-167.323085,0.00023395,2]
[323752509,1714237852827,-250.435136,0.00023395,2]
[323752510,1714237852836,-160.392274,0.00023395,2]
[323752511,1714237852845,-502.045739,0.00023395,2]
[323752512,1714237852855,-557.829899,0.00023395,2]
[323752513,1714237852867,-428.0,0.00023562,2]
[323752514,1714237852877,-736.537297,0.00023687,2]
[323752515,1714237852888,-4091.967549,0.00023687,2]
[323752516,1714237852898,-2946.149186,0.00023687,2]
[323752517,1714237852908,-502.045739,0.00023687,2]
[323752518,1714237852917,-557.829899,0.00023687,2]
[323752519,1714237852926,-1004.0,0.0002377,3]
[323752520,1714237852935,-428.0,0.00023836,2]
[323752521,1714237852946,-2139.32816095,0.000239,2]
[323752522,1714237852955,-736.537297,0.0002398,2]
[323752523,1714237852965,-4091.967549,0.0002398,2]
[323752524,1714237852975,-2946.149186,0.0002398,2]
[323752525,1714237852985,-502.045739,0.0002398,2]
[323752526,1714237852995,-557.829899,0.0002398,2]
[323752527,1714237853005,-428.0,0.0002411,2]
[323752528,1714237853013,-428.0,0.00024164,2]
[323752529,1714237853023,-736.537297,0.00024272,2]
[323752530,1714237853033,-4091.967549,0.00024272,2]
[323752531,1714237853043,-2946.149186,0.00024272,2]
[323752532,1714237853054,-502.045739,0.00024272,2]
[323752533,1714237853064,-557.829899,0.00024272,2]
[323752534,1714237853073,-153.0,0.00024384,2]
[323752535,1714237853082,-721.91344597,0.000245,2]
[323752536,1714237853091,-2258.0,0.00024504,2]
[323752537,1714237853100,-736.537297,0.00024565,2]
[323752538,1714237853109,-4091.967549,0.00024565,2]
[323752539,1714237853118,-2946.149186,0.00024565,2]
[323752540,1714237853128,-502.045739,0.00024565,2]
[323752541,1714237853137,-557.829899,0.00024565,2]
[323752542,1714237853147,-1004.0,0.0002465,3]
[323752543,1714237853155,-1293.15,0.00024657,2]
[323752544,1714237853165,-450.0,0.00024658,10]
[323752545,1714237853173,-500.0,0.00024658,2]
[323752546,1714237853184,-380.0,0.00024658,2]
[323752547,1714237853194,-500.0,0.00024658,2]
[323752548,1714237853204,-500.0,0.00024658,2]
[323752549,1714237853213,-300.0,0.000249,2]
[323752550,1714237853223,-154.82968734,0.00025,2]
[323752551,1714237853233,-154.99041713,0.00025,2]
[323752552,1714237853243,-154.92253873,0.00025,2]
[323752553,1714237853253,-1016.03721505,0.00025,2]
[323752554,1714237853262,-87348.06475574,0.00025,7]
[323752555,1714237853271,-157.0,0.0002517,6]
[323752556,1714237853280,-428.0,0.00025373,2]
[323752557,1714237853289,-442.0,0.00025373,2]
[323752558,1714237853299,-1004.0,0.0002553,3]
[323752559,1714237853308,-353400.95842584,0.000256,3]
[323752560,1714237853318,-150.0,0.00025675,2]
[323752561,1714237853327,-417.0,0.00025675,2]
[323752562,1714237853337,-1293.15,0.00025753,4]
[323752563,1714237853345,-2808.08395355,0.00026,9]
[323752564,1714237853355,-693.03286136,0.00026,2]
[323752565,1714237853364,-155.16863279,0.00026,2]
[323752566,1714237853373,-177.5,0.00026,2]
[323752567,1714237853382,-7313.25078583,0.0002638,3]
[323752568,1714237853392,-10000.0,0.00026387,2]
[323752569,1714237853401,-428.0,0.00026388,2]
[323752570,1714237853410,-1004.0,0.0002641,3]
[323752571,1714237853419,-428.0,0.00026581,2]
[323752572,1714237853428,-756.48962251,0.000266,2]
[323752573,1714237853438,-1000.0,0.000266,2]
[323752574,1714237853448,-1293.15,0.00026849,6]
[323752575,1714237853458,-3162.0,0.00026955,2]
[323752576,1714237853467,-150.5,0.0002697,7]
[323752577,1714237853476,-478.0,0.0002697,35]
[323752578,1714237853486,-1195.90716959,0.00026979,4]
[323752579,1714237853496,-150.5,0.0002698,7]
[323752580,1714237853505,-196.82,0.0002698,35]
[323752581,1714237853517,-478.0,0.0002698,35]
[323752582,1714237853526,-168.58,0.0002699,35]
[323752583,1714237853535,-150.5,0.0002699,7]
[323752584,1714237853546,-150.5,0.0002699,35]
[323752585,1714237853555,-478.0,0.0002699,35]
[323752586,1714237853564,-96934.63274812,0.00027,2]
[323752597,1714238948172,-300.0,0.00014728,2]
[323752598,1714238948197,-353.54335586,0.00016201,2]
[323752642,1714239032563,-3353.86645053,0.00016199,2]
[323752644,1714239032573,-154.81422293,0.000162,2]
[323752646,1714239032582,-284.93516068,0.00016201,2]
[323752648,1714239032591,-280.68822047,0.00016201,2]
[323752650,1714239032600,-167.090078,0.00017922,2]
[323752652,1714239032609,-150.0,0.0001797,3]
[323752654,1714239032619,-164.59713,0.00018133,2]
[323752656,1714239032627,-154.87608677,0.0001821,2]
[323752658,1714239032636,-157.13367824,0.0001821,2]
[323752660,1714239032645,-299.81571377,0.0001821,2]
[323752662,1714239032654,-423.55847974,0.0001821,2]
[323752664,1714239032663,-300.0,0.00018211,2]
[323752666,1714239032673,-300.0,0.00018211,2]
[323752668,1714239032682,-5833.22477887,0.00018212,2]
[323752670,1714239032694,-6652.17199174,0.00018212,2]
[323752672,1714239032705,-415.38634656,0.00018212,2]
[323753032,1714240025138,-300.0,0.00014728,2]
[323753033,1714240025160,-420.0,0.00016123,2]
[323753034,1714240025182,-167.090078,0.00017138,2]
[323753035,1714240025206,-154.82968734,0.00017341,2]
[323753036,1714240025228,-138.77239264,0.00017342,2]
[323753046,1714240156178,-250.0,0.00017146,2]
[323753047,1714240156199,-211.92467003,0.00017342,2]
[323753148,1714240233379,-73.01049065,0.00017342,2]
[323753150,1714240233389,-185.949598,0.00017342,2]
[323753263,1714240238842,-94.73862247,0.00017342,2]
[323753265,1714240238856,-150.0,0.0001789,3]
[323753267,1714240238871,-225.91342094,0.00018114,2]
[323753270,1714240238885,-300.0,0.00018115,2]
[323753272,1714240238899,-300.0,0.00018115,2]
[323753275,1714240238913,-725.23795659,0.00018116,2]
[323753278,1714240238930,-305.095,0.00018116,2]
[323753351,1714240240884,-21249.83479403,0.00018116,2]
[323753352,1714240240941,-2619.83224938,0.00018116,2]
[323753353,1714240240950,-1576.30653976,0.00018212,2]
[323753360,1714240241153,-274.67846024,0.00018212,2]
[323753361,1714240241163,-443.03808048,0.000185,2]
[323753362,1714240241176,-160.5342635,0.000185,2]
[323753363,1714240241185,-150.0,0.0001872,3]
[323753364,1714240241195,-713.10938698,0.000189,2]
[323753365,1714240241205,-160.365382,0.00019178,2]
[323753366,1714240241214,-159.972158,0.00019178,2]
[323753367,1714240241224,-150.0,0.0001955,3]
[323753368,1714240241233,-420.0,0.00019763,2]
[323753369,1714240241242,-602.63452016,0.00019799,2]
[323753370,1714240241254,-282.8,0.00019799,2]
[323753420,1714240244193,-1114.56547984,0.00019799,2]
[323753421,1714240244203,-600.35796974,0.00019898,2]
[323753422,1714240244212,-180.29576103,0.00019898,2]
[323753423,1714240244223,-500.0,0.00019898,2]
[323753424,1714240244233,-56.09883795,0.00019898,2]
[323753644,1714241227400,-564.78311334,0.00014713,2]
[323753645,1714241227421,-3049.6859726,0.00014714,2]
[323753646,1714241227441,-2589.08986255,0.00014715,2]
[323753647,1714241227460,-272.37020844,0.00017342,2]
[323753648,1714241227481,-520.80556556,0.0001777,2]
[323753649,1714241227501,-300.0,0.00017771,2]
[323753650,1714241227521,-300.0,0.00017771,2]
[323753651,1714241227672,-50397.96470198,0.00017772,2]
[323753658,1714241250129,-685.72461936,0.00017771,2]
[323753659,1714241250151,-1806.81192236,0.00017771,2]
[323753660,1714241250171,-427.82547392,0.00017771,2]
[323753661,1714241250191,-8791.36458604,0.00017772,2]
[323753662,1714241250211,-62499.87664832,0.00017772,2]
[323753697,1714241431900,-1055.72423294,0.00017264,2]
[323753699,1714241431913,-329.85224064,0.00017265,2]
[323753701,1714241431924,-221.07981005,0.00017265,2]
[323753704,1714241431934,-300.0,0.00017265,2]
[323753706,1714241431949,-300.0,0.00017265,2]
[323753707,1714241431962,-41519.98160976,0.00017266,2]
[323753709,1714241431973,-24900.0,0.00017267,2]
[323753711,1714241431982,-159.14208781,0.0001767,2]
[323753713,1714241431992,-939.04672329,0.00017769,2]
[323753714,1714241432002,-5872.35301909,0.00017772,2]
[323753715,1714241432015,-44171.7615156,0.00017772,2]
[323753716,1714241432026,-88094.6407207,0.00017772,2]
[323753789,1714241438021,-30603.87076063,0.00017772,2]
[323753898,1714241440094,-325.93696913,0.00017772,2]
[323753899,1714241440206,-323.35,0.00017772,2]
[323754221,1714242440149,-163.11467906,0.00016023,2]
[323754222,1714242440170,-177.2361766,0.00017282,2]
[323754223,1714242440191,-300.0,0.00017567,2]
[323754224,1714242440212,-300.0,0.00017567,2]
[323754225,1714242440235,-24900.0,0.00017568,2]
[323754226,1714242440255,-280.68822047,0.00017772,2]
[323754227,1714242440276,-452.86779382,0.00017772,2]
[323754228,1714242440298,-255.6,0.0001803,3]
[323754229,1714242440319,-1556.95675001,0.000184,2]
[323754230,1714242440339,-603.57234398,0.000185,2]
[323754231,1714242440360,-255.6,0.0001885,3]
[323754232,1714242440380,-475.40625799,0.000189,2]
[323754233,1714242440402,-955.9274359,0.00018945,2]
[323754234,1714242440424,-1057.60563749,0.00018946,2]
[323754236,1714242440547,-265.1468592,0.00018946,2]
[323754237,1714242440569,-7870.62977803,0.00018946,2]
[323754239,1714242440591,-155.87018974,0.00018946,2]
[323754240,1714242440619,-215.76996313,0.00018946,2]
[323754241,1714242440640,-243.20278432,0.00018946,2]
[323754242,1714242440660,-361.91629684,0.00018946,2]
[323754243,1714242440681,-164.04462217,0.00018946,2]
[323754244,1714242440703,-837.0803577,0.00018946,2]
[323754245,1714242440724,-600.0,0.00018946,2]
[323754246,1714242440746,-945.7056575,0.00018946,2]
[323754247,1714242440767,-706.77782139,0.00018946,2]
[323754248,1714242440788,-240.49274537,0.00018947,2]
[323754249,1714242440810,-420.0,0.00019176,2]
[323754250,1714242440831,-189.24695719,0.00019176,2]
[323754251,1714242440852,-160.365382,0.00019178,2]
[323754252,1714242440874,-159.935209,0.00019178,2]
[323754253,1714242440895,-159.853443,0.00019178,2]
[323754255,1714242440917,-420.0,0.00019324,2]
[323754256,1714242440939,-255.6,0.0001966,3]
[323754257,1714242440959,-2000.0,0.00019799,2]
[323754258,1714242440979,-157.08875643,0.00019897,2]
[323754259,1714242440999,-526.48799582,0.00019897,2]
[323754260,1714242441022,-200.0,0.00019898,2]
[323754261,1714242441043,-461.92467003,0.00019898,2]
[323754262,1714242441065,-257.29627275,0.00019898,2]
[323754263,1714242441086,-344.70455256,0.00019898,2]
[323754264,1714242441108,-500.0,0.00019898,2]
[323754265,1714242441128,-181.20668877,0.00019898,2]
[323754266,1714242441148,-500.0,0.00019898,2]
[323754267,1714242441170,-204.40737382,0.00019898,2]
[323754268,1714242441190,-167.5674588,0.00019898,2]
[323754269,1714242441210,-620.84236101,0.00019898,2]
[323754270,1714242441230,-500.0,0.00019898,2]
[323754271,1714242441252,-172.61406582,0.00019898,2]
[323754272,1714242441275,-387.68195707,0.00019898,2]
[323754273,1714242441296,-442.71151834,0.00019898,2]
[323754274,1714242441315,-500.0,0.00019898,2]
[323754276,1714242441338,-399.52526114,0.00019898,2]
[323754277,1714242441360,-156096.96329776,0.00019899,2]
[323754304,1714242451165,-62112.34428483,0.00019899,2]
[323754444,1714242638189,-339.93173503,0.00017772,2]
[323754446,1714242638199,-258.75359852,0.0001805,3]
[323754639,1714242640225,-182.04640148,0.0001805,3]
[323754641,1714242640235,-603.57234398,0.000185,2]
[323754643,1714242640244,-440.8,0.0001886,3]
[323754645,1714242640254,-316.93750532,0.000189,2]
[323754647,1714242640263,-440.8,0.0001968,3]
[323754649,1714242640273,-363.86320338,0.00019899,2]
[323754651,1714242640287,-200.0,0.00019899,2]
[323754653,1714242640296,-210.28116392,0.00019899,2]
[323754655,1714242640307,-89.71883608,0.00019899,2]
[323754656,1714242640317,-300.0,0.00019899,2]
[323754657,1714242640327,-151.0,0.000199,2]
[323754658,1714242640336,-282.874941,0.000199,2]
[323754659,1714242640345,-1136.814068,0.000199,2]
[323754660,1714242640355,-1136.814068,0.000199,2]
[323754661,1714242640364,-151.0,0.000199,2]
[323754662,1714242640374,-93.57808692,0.000199,2]
[323754668,1714242640504,-87.87096608,0.000199,2]
[323754670,1714242640538,-151.0,0.000199,2]
[323754672,1714242640547,-163.44489926,0.00019997,2]
[323754673,1714242640557,-62.4727965,0.00019997,2]
[323754674,1714242640568,-95.22488377,0.00019997,2]
[323754675,1714242640577,-155.50280679,0.00019998,2]
[323754676,1714242640586,-117.00534744,0.00019999,2]
[323754722,1714242643306,-3962.000006,0.00019999,2]
[323754723,1714242643318,-706.5,0.00019999,2]
[323754724,1714242643331,-921.07081935,0.00019999,2]
[323754725,1714242643342,-7724.4424946,0.00019999,2]
[323754944,1714243625109,-653.54335586,0.00017867,2]
[323754973,1714243765132,-293.60207998,0.00014728,2]
[323755015,1714243832691,-154.82968734,0.00014728,2]
[323755016,1714243832702,-363.86320338,0.00014728,2]
[323755017,1714243832713,-1224.5524047,0.00017863,2]
[323755018,1714243832722,-526.63352259,0.00017864,2]
[323755020,1714243832731,-300.0,0.00017866,2]
[323755022,1714243832741,-211.92467003,0.00017867,2]
[323755024,1714243832750,-673.47182912,0.00017867,2]
[323755026,1714243832760,-160.58737193,0.00017867,2]
[323755028,1714243832769,-408.98014644,0.00017867,2]
[323755030,1714243832778,-468.63626257,0.00017867,2]
[323755032,1714243832787,-157.85138427,0.00017867,2]
[323755034,1714243832797,-579.63919765,0.00017867,2]
[323755036,1714243832806,-164.04462217,0.00017867,2]
[323755038,1714243832816,-154.84515485,0.00017867,2]
[323755040,1714243832825,-156.89720801,0.00017867,2]
[323755042,1714243832834,-274.70129001,0.00017867,2]
[323755044,1714243832843,-176.45122466,0.00017867,2]
[323755046,1714243832852,-170.86790632,0.00017868,2]
[323755048,1714243832861,-296.34747606,0.00017869,2]
[323755051,1714243832873,-2392.75577104,0.00017869,2]
[323755053,1714243832884,-9371.08345359,0.00017869,2]
[323755055,1714243832895,-6094.91342022,0.00017869,2]
[323755143,1714243838333,-2412.80397013,0.00017869,2]
[323755144,1714243838345,-4332.09590896,0.00017869,2]
[323755145,1714243838355,-857.6,0.00018,3]
[323755146,1714243838364,-313.81237693,0.00018,2]
[323755147,1714243838373,-166.666666,0.00018371,2]
[323755148,1714243838383,-603.57234398,0.000185,2]
[323755149,1714243838392,-857.6,0.0001882,3]
[323755150,1714243838401,-5560.9211117,0.000189,2]
[323755151,1714243838411,-189.30063706,0.0001897,2]
[323755152,1714243838421,-7930.56704238,0.00019,2]
[323755153,1714243838430,-154.84515485,0.00019,2]
[323755154,1714243838438,-160.089434,0.00019178,2]
[323755155,1714243838447,-160.16877,0.00019178,2]
[323755156,1714243838457,-159.935209,0.00019178,2]
[323755157,1714243838466,-857.6,0.0001964,3]
[323755158,1714243838475,-420.0,0.00019653,2]
[323755159,1714243838485,-227.69247761,0.00019699,2]
[323755160,1714243838493,-500.0,0.00019798,2]
[323755161,1714243838503,-172.78089644,0.00019798,2]
[323755162,1714243838511,-9978.62273172,0.00019799,2]
[323755228,1714243846320,-154.82968734,0.00014728,2]
[323755229,1714243846330,-99.43685783,0.00018893,2]
[323755253,1714244082761,-1000.0,0.00032262,120]
[323755254,1714244082790,-1000.0,0.00032262,120]
[323755255,1714244082814,-503.099999,0.00032262,120]
[323755256,1714244082837,-1000.0,0.00032262,60]
[323755257,1714244082861,-1000.0,0.00032262,60]
[323755258,1714244082887,-503.099999,0.00032262,60]
[323755259,1714244082912,-1000.0,0.00032262,90]
[323755260,1714244082936,-1000.0,0.00032262,90]
[323755261,1714244082959,-503.099999,0.00032262,90]
[323755262,1714244082984,-177.75,0.00032262,30]
[323755263,1714244083009,-15000.0,0.00032262,120]
[323755264,1714244083033,-811.26978458,0.00032262,30]
[323755265,1714244084130,1029.89515906,0.00032262,120]
[323755266,1714244085279,44605.1653909,0.00032262,30]
[323755267,1714244087076,-203502.39859275,0.00027,15]